bitfinex/quotes_ETHUSD_20240926
["timestamp","ask_amount","ask_price","bid_price","bid_amount"]
[1727342386206,0.8172,2620.9,2620.6,5.19784713]
[1727342386426,2.00764673,2620.9,2620.6,5.19784713]
[1727342386905,0.8172,2620.9,2620.6,7.63165]
[1727342387411,0.8172,2620.9,2620.7,3.81576]
[1727342388718,1.19044673,2621.0,2620.8,3.81562]
[1727342389193,1.19044673,2621.0,2620.7,5.57983131]
[1727342389700,1.19044673,2621.0,2620.7,5.57978131]
[1727342390232,1.19044673,2621.0,2620.7,9.39549131]
[1727342390435,1.19044673,2621.0,2620.8,3.8156]
[1727342392501,1.19044673,2620.9,2620.8,3.8156]
[1727342393708,1.19044673,2620.9,2620.8,3.85399532]
[1727342393914,1.19044673,2621.0,2620.8,3.85399532]
[1727342394144,1.19044673,2620.9,2620.8,3.85399532]
[1727342394532,2.34161406,2621.1,2620.8,3.85399532]
[1727342394533,1.19044673,2621.0,2620.8,3.85399532]
[1727342394997,1.19044673,2621.0,2620.9,3.81548]
[1727342395349,1.19044673,2621.2,2621.1,3.81519]
[1727342395716,1.19044673,2621.2,2621.1,3.85351248]
[1727342396104,1.19044673,2621.3,2621.1,3.85351248]
[1727342396336,1.19044673,2621.4,2621.2,3.81504]
[1727342396499,1.19044673,2621.4,2621.3,5.57897131]
[1727342396701,1.19044673,2621.5,2621.3,5.61704581]
[1727342396941,1.19044673,2621.5,2621.3,1.80214581]
[1727342397447,2.01584673,2621.6,2621.3,5.61702581]
[1727342397647,1.19044673,2621.5,2621.3,5.61702581]
[1727342397942,1.19044673,2621.5,2621.3,1.80214581]
[1727342399309,2.01584673,2621.6,2621.3,1.80214581]
[1727342399508,1.19044673,2621.5,2621.3,1.80214581]
[1727342399743,2.01584673,2621.6,2621.3,5.61702581]
[1727342399936,1.19044673,2621.5,2621.3,5.61702581]
[1727342400444,5.83031673,2621.6,2621.3,1.80214581]
[1727342400614,1.19044673,2621.5,2621.3,1.80214581]
[1727342401224,1.19044673,2621.5,2621.3,5.61702581]
[1727342402110,1.19044673,2621.6,2621.3,6.63677339]
[1727342402416,1.19044673,2621.8,2621.5,5.57858131]
[1727342402663,1.19044673,2621.8,2621.5,1.76407131]
[1727342402809,1.19044673,2621.7,2621.6,0.03923903]
[1727342403207,3.81431,2621.7,2621.3,5.57885131]
[1727342403451,5.00475673,2621.7,2621.4,0.039348]
[1727342405117,1.19044673,2621.7,2621.4,0.039348]
[1727342405311,3.81431,2621.7,2621.4,0.039348]
[1727342405546,5.00472673,2621.8,2621.4,0.039348]
[1727342405745,8.81902673,2621.8,2621.4,0.039348]
[1727342405962,3.81432,2621.7,2621.4,0.039348]
[1727342406757,5.00469673,2621.8,2621.4,0.039348]
[1727342406926,3.81432,2621.7,2621.4,0.039348]
[1727342407656,1.19044673,2621.8,2621.4,0.039348]
[1727342408038,3.81432,2621.7,2621.4,0.039348]
[1727342409359,1.19044673,2621.8,2621.4,3.854048]
[1727342409594,8.88114216,2621.9,2621.5,1.76407131]
[1727342409863,0.0379599,2622.1,2622.0,3.81388]
[1727342410459,0.0379599,2622.1,2622.0,3.85874]
[1727342425793,0.0379599,2622.1,2622.0,4.74821073]
[1727342425999,0.0379599,2622.1,2622.0,5.78083893]
[1727342426170,0.0379599,2622.1,2622.0,5.80121373]
[1727342432159,0.0379599,2622.1,2622.0,5.81836735]
[1727342437689,0.0379599,2622.1,2622.0,7.50616793]
[1727342438103,0.0379599,2622.1,2622.0,6.69296793]
[1727342438402,0.0379599,2622.1,2622.0,4.92889662]
[1727342438576,0.0379599,2622.1,2622.0,5.66033973]
[1727342441023,0.0379599,2622.1,2622.0,3.89626842]
[1727342444791,0.89610251,2622.1,2622.0,0.08238842]
[1727342444996,0.8007599,2622.1,2622.0,0.08238842]
[1727342445195,0.8007599,2622.1,2621.9,3.81395]
[1727342445422,0.8007599,2622.1,2622.0,0.07975153]
[1727342445782,0.8007599,2622.1,2622.0,3.89363153]
[1727342446597,0.8007599,2622.1,2622.0,0.07975153]
[1727342446797,5.07591189,2622.1,2622.0,0.07975153]
[1727342447000,3.0,2622.0,2621.6,3.81438]
[1727342447200,0.7975,2621.9,2621.7,3.81431]
[1727342449403,0.7975,2621.9,2621.6,1.76407131]
[1727342449601,0.7975,2621.9,2621.7,3.81419]
[1727342449832,0.7975,2621.9,2621.8,3.81417]
[1727342451932,0.7975,2621.9,2621.8,5.57824131]
[1727342452134,0.8395599,2622.1,2621.9,3.814]
[1727342453706,0.8395599,2622.1,2622.0,0.08036252]
[1727342454305,0.8395599,2622.1,2621.8,5.57821131]
[1727342454500,5.0292592,2622.1,2621.9,0.08041518]
[1727342454837,2.0292592,2622.1,2621.9,0.08041518]
[1727342455135,0.8395599,2622.1,2621.9,0.08041518]
[1727342455341,0.8395599,2622.1,2621.9,3.89443518]
[1727342456044,2.0292592,2622.1,2621.9,3.89443518]
[1727342456644,0.8395599,2622.1,2621.9,3.89443518]
[1727342457142,0.0379599,2622.1,2622.0,1.76407131]
[1727342457341,0.0379599,2622.1,2622.0,1.84443383]
[1727342459225,0.0379599,2622.1,2622.0,0.08036252]
[1727342459618,0.0379599,2622.1,2621.9,3.814]
[1727342459940,0.0379599,2622.1,2622.0,0.08036252]
[1727342462082,0.0379599,2622.1,2621.8,5.57823131]
[1727342462211,0.0379599,2622.1,2622.0,0.08036252]
[1727342462412,0.0379599,2622.1,2621.9,0.08041518]
[1727342462612,0.0379599,2622.1,2622.0,0.08036252]
[1727342463013,0.0379599,2622.1,2621.9,3.81392]
[1727342463228,0.0379599,2622.1,2622.0,0.08036252]
[1727342463647,0.0379599,2622.1,2622.0,3.89424252]
[1727342464249,0.0379599,2622.1,2622.0,0.08036252]
[1727342467258,0.0379599,2622.1,2622.0,5.65831383]
[1727342475297,0.39908052,2622.6,2622.3,0.8132]
[1727342475582,0.0379599,2622.9,2622.8,3.81271]
[1727342475740,0.0379599,2622.9,2622.8,5.57678131]
[1727342475943,0.0379599,2622.9,2622.8,5.65653003]
[1727342478226,0.0379599,2622.9,2622.8,5.73277443]
[1727342479118,0.0379599,2622.9,2622.8,5.65653003]
[1727342479302,0.0379599,2622.9,2622.8,7.49798603]
[1727342479503,0.0379599,2622.9,2622.8,5.73391472]
[1727342479718,0.0379599,2622.9,2622.8,5.65653003]
[1727342486313,0.0379599,2622.9,2622.8,5.7327773]
[1727342486521,0.0379599,2622.9,2622.8,6.5410773]
[1727342497169,0.0379599,2622.9,2622.8,3.89245872]
[1727342499589,0.0379599,2622.9,2622.8,4.78191116]
[1727342499800,0.0379599,2622.9,2622.8,5.81778673]
[1727342504129,0.0379599,2622.9,2622.8,5.74154097]
[1727342504633,0.0379599,2622.9,2622.8,5.81777933]
[1727342505599,0.0379599,2622.9,2622.8,5.74154097]
[1727342506036,0.0379599,2622.9,2622.8,5.81777916]
[1727342506235,0.0379599,2622.9,2622.8,5.74154097]
[1727342507438,0.0379599,2622.9,2622.8,5.81777936]
[1727342507644,0.0379599,2622.9,2622.8,5.74154097]
[1727342509145,0.0379599,2622.9,2622.8,4.92834097]
[1727342512061,0.0379599,2622.9,2622.8,3.89245872]
[1727342521240,0.0379599,2622.9,2622.8,0.07974872]
[1727342521518,2.44207396,2622.9,2622.8,0.07974872]
[1727342521716,2.44207396,2622.9,2622.6,3.8129]
[1727342521923,0.0379599,2622.9,2622.8,0.07173432]
[1727342522124,2.21032993,2622.9,2622.7,0.07178695]
[1727342522312,0.7769,2622.8,2622.7,0.07178695]
[1727342522620,2.36590012,2622.8,2622.7,0.07178695]
[1727342523122,2.36460012,2622.8,2622.7,0.07178695]
[1727342523283,6.17731012,2622.8,2622.7,0.07178695]
[1727342523486,0.7756,2622.7,2622.4,3.81327]
[1727342523717,0.7756,2622.7,2622.3,5.57742131]
[1727342523718,2.36391209,2622.7,2622.5,3.81314]
[1727342524030,0.7756,2622.7,2622.5,5.57712131]
[1727342524207,0.7756,2622.7,2622.5,1.76407131]
[1727342524417,0.7756,2622.7,2622.5,5.57710131]
[1727342524653,0.7756,2622.7,2622.5,9.39019131]
[1727342524922,0.7756,2622.7,2622.5,5.57710131]
[1727342527124,0.7756,2622.7,2622.5,9.39018131]
[1727342527340,0.7756,2622.7,2622.5,5.57710131]
[1727342528756,0.7756,2622.7,2622.6,0.06983959]
[1727342530571,8.29828199,2622.7,2622.6,0.06983959]
[1727342530716,0.7591,2622.6,2622.3,3.81341]
[1727342530912,2.34670784,2622.6,2622.4,3.81322]
[1727342531118,0.7591,2622.6,2622.4,3.81322]
[1727342532759,4.68294086,2622.8,2622.4,3.81322]
[1727342532760,1.68294086,2622.8,2622.5,1.76407131]
[1727342532919,2.02172523,2622.9,2622.0,3.81387]
[1727342532920,0.0379599,2622.9,2622.8,0.8132]
[1727342533116,0.0379599,2622.9,2622.8,5.73007898]
[1727342534680,0.0379599,2622.9,2622.8,5.7300778]
[1727342536171,0.0379599,2622.9,2622.8,6.15478177]
[1727342536390,0.0379599,2622.9,2622.8,6.15478175]
[1727342536736,0.0379599,2622.9,2622.8,5.73007778]
[1727342536941,0.0379599,2622.9,2622.8,6.15478216]
[1727342539700,0.0379599,2622.9,2622.8,5.73007778]
[1727342539997,0.0379599,2622.9,2622.8,6.15481701]
[1727342540567,0.0379599,2622.9,2622.8,6.15481848]
[1727342542206,0.0379599,2622.9,2622.8,6.07857543]
[1727342542407,0.0379599,2622.9,2622.8,5.26537543]
[1727342542408,0.8365599,2622.9,2622.8,5.26537543]
[1727342542610,0.8365599,2622.9,2622.7,3.8128]
[1727342542782,0.8365599,2622.9,2622.7,3.81277]
[1727342543181,0.8365599,2622.9,2622.8,5.57678131]
[1727342543813,0.8365599,2622.9,2622.8,5.64644264]
[1727342544117,0.0379599,2622.9,2622.8,5.64644264]
[1727342549391,0.0379599,2622.9,2622.8,3.88237133]
[1727342549593,0.0379599,2622.9,2622.8,5.64644264]
[1727342550117,0.0379599,2622.9,2622.8,0.06966133]
[1727342550318,0.8316599,2622.9,2622.8,3.88237133]
[1727342550614,0.8316599,2622.9,2622.8,5.64656874]
[1727342559230,0.0379599,2622.9,2622.8,10.45586807]
[1727342559540,0.0379599,2622.9,2622.8,9.43366874]
[1727342559837,0.0379599,2622.9,2622.8,10.31221646]
[1727342560129,0.0379599,2622.9,2622.8,10.73713727]
[1727342560303,0.0379599,2622.9,2622.8,9.39798478]
[1727342560506,0.0379599,2622.9,2622.8,11.68488159]
[1727342563135,0.0379599,2622.9,2622.8,11.25996277]
[1727342563430,0.0379599,2622.9,2622.8,11.68473082]
[1727342563595,0.66275308,2623.7,2623.6,3.81155]
[1727342563827,0.66275308,2623.7,2623.6,3.88087004]
[1727342565461,0.66275308,2623.7,2623.6,5.64494135]
[1727342566924,0.66275308,2623.7,2623.6,3.88087004]
[1727342573084,0.66275308,2623.7,2623.6,0.06932004]
[1727342573563,2.34670784,2623.9,2623.6,3.81155]
[1727342573750,0.7591,2623.9,2623.7,3.81134]
[1727342574061,0.09528973,2624.0,2623.7,5.57541131]
[1727342574062,0.7978,2624.0,2623.7,5.57541131]
[1727342574263,0.7978,2624.0,2623.8,0.06889635]
[1727342574462,0.7978,2624.0,2623.8,3.81125]
[1727342574663,0.7978,2624.0,2623.9,0.06884376]
[1727342575099,0.7978,2624.0,2623.9,3.87996376]
[1727342576673,0.7978,2624.0,2623.9,0.06884376]
[1727342579682,0.7978,2624.0,2623.9,3.87996376]
[1727342579882,0.7978,2624.0,2623.9,0.06884376]
[1727342580457,0.7978,2624.0,2623.9,3.87996376]
[1727342582688,0.7978,2624.0,2623.9,0.06884376]
[1727342582885,0.7978,2624.0,2623.9,3.87996376]
[1727342583279,0.7978,2624.0,2623.9,0.06884376]
[1727342583861,0.7978,2624.0,2623.9,3.87996376]
[1727342584601,1.1934583,2624.2,2623.9,3.87996376]
[1727342587999,1.1934583,2624.2,2623.9,3.87986376]
[1727342590131,1.1934583,2624.2,2623.9,0.06884376]
[1727342590270,0.8168,2624.0,2623.9,0.06884376]
[1727342590477,0.8168,2624.0,2623.8,3.81123]
[1727342590676,0.8168,2624.0,2623.9,0.0681597]
[1727342596695,0.39885927,2624.1,2623.9,0.0681597]
[1727342597019,0.39885927,2624.1,2623.9,3.8792697]
[1727342598716,0.39885927,2624.1,2623.9,3.81111]
[1727342598919,0.39885927,2624.1,2624.0,0.06808721]
[1727342600419,1.98646711,2624.1,2624.0,0.06808721]
[1727342600625,0.39885927,2624.1,2624.0,0.06808721]
[1727342600810,1.98646711,2624.1,2624.0,0.06808721]
[1727342601006,0.39885927,2624.1,2624.0,0.06808721]
[1727342602529,1.98646711,2624.1,2624.0,0.06808721]
[1727342604808,0.39885927,2624.1,2624.0,0.06808721]
[1727342605008,2.38936736,2624.1,2624.0,0.06808721]
[1727342608152,0.39885927,2624.1,2624.0,0.06808721]
[1727342608378,0.39885927,2624.1,2623.8,3.81125]
[1727342608654,0.39885927,2624.1,2624.0,0.06808721]
[1727342608817,0.39885927,2624.1,2623.9,0.0681398]
[1727342609018,0.39885927,2624.1,2624.0,0.06808721]
[1727342609215,4.20968927,2624.1,2624.0,0.06808721]
[1727342609416,4.20968927,2624.1,2623.4,3.81176]
[1727342609417,3.81129,2623.8,2623.4,3.81176]
[1727342609611,0.7845,2623.5,2623.0,0.80291738]
[1727342609817,0.7845,2623.5,2623.3,3.81192]
[1727342610949,0.7845,2623.5,2623.4,3.81184]
[1727342611366,0.7845,2623.5,2623.3,3.81189]
[1727342611957,0.7845,2623.5,2623.4,3.81184]
[1727342612868,0.85449544,2623.8,2623.4,3.81184]
[1727342613040,0.85449544,2623.8,2623.6,3.81149]
[1727342613222,1.59157471,2623.7,2623.6,3.81149]
[1727342614035,1.59157471,2623.7,2623.4,7.62349]
[1727342614362,1.59157471,2623.7,2623.5,3.81167]
[1727342615731,1.59157471,2623.7,2623.3,3.81188]
[1727342615931,1.59157471,2623.7,2623.4,3.81182]
[1727342616982,0.7592,2623.6,2623.3,3.81197]
[1727342617182,4.66607675,2623.6,2623.2,3.81208]
[1727342617693,0.7592,2623.5,2623.1,3.81226]
[1727342617886,0.7592,2623.3,2622.9,3.81245]
[1727342618087,0.7592,2623.3,2623.1,3.81227]
[1727342618250,0.7592,2623.3,2623.2,3.81213]
[1727342618783,0.7592,2623.3,2623.2,3.87815491]
[1727342619365,0.7592,2623.3,2623.2,0.06602491]
[1727342619771,0.7592,2623.3,2623.1,3.81227]
[1727342619938,0.7592,2623.3,2623.2,0.06602491]
[1727342621380,0.7592,2623.3,2623.2,3.87815491]
[1727342621580,0.8302,2623.5,2623.3,3.81198]
[1727342622143,0.8302,2623.5,2623.4,0.06591969]
[1727342622421,0.8302,2623.5,2623.2,3.81213]
[1727342622571,0.8302,2623.5,2623.4,0.06591969]
[1727342622770,1.55616246,2623.5,2623.3,0.0659723]
[1727342622985,1.55616246,2623.5,2623.4,0.06591969]
[1727342623220,3.14773717,2623.5,2623.4,0.06591969]
[1727342623692,3.14773717,2623.5,2623.2,3.81213]
[1727342623871,3.14773717,2623.5,2623.3,0.0659723]
[1727342624071,3.14773717,2623.5,2623.2,3.81213]
[1727342624287,3.14773717,2623.5,2623.3,0.0659723]
[1727342624618,3.14773717,2623.5,2623.2,3.81213]
[1727342624784,3.14773717,2623.5,2623.4,0.06591969]
[1727342624983,3.14773717,2623.5,2623.0,3.81233]
[1727342624984,6.95944717,2623.5,2623.3,0.06630353]
[1727342625221,7.44985763,2623.5,2623.4,0.06625092]
[1727342625509,0.7953,2623.4,2623.0,3.81233]
[1727342625665,6.19569747,2623.4,2623.0,3.81233]
[1727342625868,6.2910098,2623.4,2623.1,0.06640876]
[1727342626069,7.5725458,2623.4,2623.1,0.06640876]
[1727342626715,3.7606758,2623.4,2623.1,0.06640876]
[1727342626912,2.4791398,2623.4,2623.1,0.06640876]
[1727342627601,0.89061233,2623.4,2623.1,3.87867876]
[1727342627843,0.7953,2623.4,2623.1,3.87867876]
[1727342628046,0.7953,2623.4,2623.2,3.81202]
[1727342628362,0.7953,2623.4,2623.3,0.06630353]
[1727342628566,2.47963321,2623.6,2623.3,0.06630353]
[1727342628860,2.47963321,2623.6,2623.3,3.81191]
[1727342629062,2.38432747,2623.6,2623.4,3.81178]
[1727342629256,2.38432747,2623.6,2623.4,3.87803092]
[1727342629441,2.38432747,2623.6,2623.4,0.06625092]
[1727342631713,7.4905274,2623.6,2623.4,0.06625092]
[1727342631916,7.4905274,2623.6,2623.2,3.81212]
[1727342632136,7.4905274,2623.6,2623.3,0.06630353]
[1727342632319,7.4905274,2623.6,2623.2,3.81212]
[1727342632564,7.4905274,2623.6,2623.3,0.06630353]
[1727342632994,7.4905274,2623.6,2623.2,3.81212]
[1727342633155,7.4905274,2623.6,2623.4,0.06625092]
[1727342633488,2.5361352,2623.5,2623.2,3.81212]
[1727342633794,1.58852747,2623.5,2623.2,3.81212]
[1727342634006,1.58852747,2623.5,2623.3,0.06630353]
[1727342634162,6.29127093,2623.6,2623.3,0.06630353]
[1727342634483,1.58852747,2623.5,2623.4,0.06625092]
[1727342634686,1.58852747,2623.5,2623.2,3.81212]
[1727342634887,1.58852747,2623.5,2623.3,0.06630353]
[1727342635083,6.29127093,2623.6,2623.2,3.81212]
[1727342635292,1.58852747,2623.5,2623.3,0.06630353]
[1727342635521,1.58852747,2623.5,2623.1,3.81221]
[1727342635660,1.58852747,2623.5,2623.2,0.06635615]
[1727342636387,10.00762747,2623.6,2623.2,0.06635615]
[1727342636693,1.58852747,2623.5,2623.2,0.06635615]
[1727342636991,10.00762747,2623.6,2623.2,0.06635615]
[1727342637695,6.19596747,2623.6,2623.2,0.06635615]
[1727342637863,10.10291242,2623.6,2623.2,0.06635615]
[1727342638060,6.19596747,2623.6,2623.2,0.06635615]
[1727342638266,10.10292265,2623.6,2623.2,0.06635615]
[1727342638567,10.00761747,2623.6,2623.2,0.06635615]
[1727342638809,6.19596747,2623.6,2623.2,0.06635615]
[1727342638955,6.2912723,2623.6,2623.2,0.06635615]
[1727342639566,1.58852747,2623.5,2623.2,0.06635615]
[1727342639893,3.81176,2623.5,2623.2,0.06635615]
[1727342640195,5.49559479,2623.5,2623.2,0.06635615]
[1727342642388,3.81186,2623.4,2623.2,0.06635615]
[1727342642595,3.81199,2623.3,2623.2,0.06635615]
[1727342642805,7.45731505,2623.3,2623.2,0.06635615]
[1727342643194,5.57748131,2622.4,2622.0,0.7928]
[1727342643394,5.40014488,2622.5,2622.0,0.7928]
[1727342643744,3.81344,2622.3,2622.0,0.7928]
[1727342644041,3.90865665,2622.4,2622.0,0.7928]
[1727342644241,0.09534665,2622.4,2622.0,4.60662]
[1727342645133,3.90866665,2622.4,2622.0,4.60662]
[1727342646037,3.90866665,2622.4,2622.0,3.81382]
[1727342646909,3.90866665,2622.4,2622.1,0.7899]
[1727342647453,3.90866665,2622.4,2621.8,3.81416]
[1727342647621,5.67273796,2622.4,2621.8,4.60406]
[1727342648027,3.81352,2622.3,2621.8,4.60406]
[1727342648546,3.81375,2622.1,2621.8,0.7899]
[1727342648753,3.90910815,2622.1,2621.8,0.7899]
[1727342651249,0.09535815,2622.1,2621.8,0.7899]
[1727342652426,0.09535815,2622.1,2621.4,0.0379599]
[1727342652427,1.76407131,2622.0,2621.5,0.7505]
[1727342652628,0.09536633,2621.9,2621.5,0.7505]
[1727342652811,0.09536633,2621.9,2621.5,4.56503]
[1727342653052,3.0,2622.2,2621.8,3.8141]
[1727342653563,6.81362,2622.2,2621.7,4.56472]
[1727342653855,0.0953575,2622.1,2621.7,4.56472]
[1727342654870,6.90897747,2622.2,2621.7,4.56472]
[1727342655739,6.81362,2622.2,2621.7,8.37896]
[1727342655943,3.81383,2622.1,2621.7,0.7505]
[1727342656256,3.90918779,2622.1,2621.7,0.7505]
[1727342656615,4.139687,2622.2,2621.7,0.7505]
[1727342656820,6.81365,2622.2,2621.7,4.56475]
[1727342657651,10.62732,2622.2,2621.7,4.56475]
[1727342658890,6.81365,2622.2,2621.7,4.56475]
[1727342659034,3.81374,2622.1,2621.7,0.7505]
[1727342659241,3.81389,2622.0,2621.6,3.81444]
[1727342659679,3.81389,2622.0,2621.7,0.05946354]
[1727342659890,3.81417,2621.8,2621.7,0.05946354]
[1727342660240,3.81417,2621.8,2621.5,0.7797]
[1727342660573,3.81417,2621.8,2621.6,0.05951622]
[1727342661444,3.81409,2621.9,2621.6,0.05951622]
[1727342661704,3.8142,2621.8,2621.6,0.05951622]
[1727342662882,3.81408,2621.9,2621.6,0.05951622]
[1727342666949,3.81394,2622.0,2621.6,3.87396622]
[1727342667253,3.81394,2622.0,2621.6,0.05951622]
[1727342667474,7.62794,2622.0,2621.6,0.05951622]
[1727342668244,3.81406,2621.9,2621.6,0.05951622]
[1727342668862,3.81394,2622.0,2621.6,0.05951622]
[1727342669488,7.62795,2622.0,2621.6,0.05951622]
[1727342669871,3.81394,2622.0,2621.6,3.87397622]
[1727342671208,7.62791,2622.0,2621.6,3.87397622]
[1727342671357,3.81394,2622.0,2621.6,3.87397622]
[1727342671563,7.62793,2622.0,2621.6,3.87397622]
[1727342671811,7.62793,2622.0,2621.6,0.05951622]
[1727342673898,3.81415,2621.9,2621.6,0.05951622]
[1727342677896,3.81394,2622.0,2621.6,3.87388622]
[1727342684452,7.6279,2622.0,2621.6,3.87388622]
[1727342684856,3.81394,2622.0,2621.6,3.87388622]
[1727342685361,8.40069488,2622.2,2621.6,3.87388622]
[1727342685362,3.81381,2622.1,2621.6,3.87388622]
[1727342685560,5.40079488,2622.1,2621.6,7.68826622]
[1727342685763,5.40079488,2622.1,2621.6,3.87388622]
[1727342687255,5.40089488,2622.0,2621.6,3.87388622]
[1727342687461,5.40089488,2622.0,2621.6,7.68824622]
[1727342687767,5.40089488,2622.0,2621.6,3.87387622]
[1727342688266,9.21485488,2622.0,2621.6,3.87387622]
[1727342688558,1.58698488,2621.8,2621.6,3.87387622]
[1727342689662,3.5724859,2621.9,2621.6,3.87387622]
[1727342689862,1.58698488,2621.8,2621.6,3.87387622]
[1727342690179,1.58698488,2621.8,2621.6,0.05951622]
[1727342691339,1.58698488,2621.7,2621.6,0.05951622]
[1727342691652,1.58698488,2621.8,2621.6,0.05951622]
[1727342691854,1.58698488,2621.7,2621.6,0.05951622]
[1727342692900,1.58698488,2621.8,2621.6,4.2961784]
[1727342693094,1.58698488,2621.9,2621.7,3.81431]
[1727342693253,1.58698488,2621.8,2621.7,3.81431]
[1727342693841,1.58698488,2621.9,2621.8,3.81417]
[1727342694341,1.58698488,2621.9,2621.8,4.29619853]
[1727342695085,1.58698488,2621.9,2621.8,0.0595699]
[1727342695382,1.58698488,2621.9,2621.7,5.25829813]
[1727342695579,1.58698488,2621.9,2621.8,0.05958978]
[1727342696489,1.58698488,2622.0,2621.8,7.04903723]
[1727342696693,3.81325,2622.5,2621.8,7.04903723]
[1727342696694,1.58698488,2622.2,2622.1,3.81373]
[1727342696985,1.58698488,2622.2,2622.1,0.48182839]
[1727342697288,1.58698488,2622.2,2622.1,3.87312202]
[1727342697493,1.58698488,2622.2,2622.1,0.05939202]
[1727342698886,1.58698488,2622.3,2622.1,0.05939202]
[1727342699553,1.99118321,2622.2,2622.1,0.05939202]
[1727342699878,7.32095952,2622.3,2621.8,3.81406]
[1727342700085,6.60753321,2622.3,2622.1,0.05926615]
[1727342700381,5.80365626,2622.2,2621.8,3.81406]
[1727342700701,1.59207635,2622.1,2621.8,3.81406]
[1727342700853,5.40567635,2622.2,2621.8,3.81406]
[1727342701053,1.59207635,2622.1,2621.8,3.81406]
[1727342701695,6.60641626,2622.3,2621.8,3.81406]
[1727342701696,1.59207635,2622.2,2621.8,3.81406]
[1727342701878,1.59207635,2622.1,2621.9,0.42217019]
[1727342702082,1.59207635,2622.1,2621.8,3.81406]
[1727342702472,1.59207635,2622.1,2621.9,3.814]
[1727342702786,1.59207635,2622.2,2621.9,3.814]
[1727342704496,1.59207635,2622.2,2622.0,3.81385]
[1727342704695,1.59207635,2622.3,2622.0,3.81385]
[1727342704998,1.59207635,2622.2,2622.0,3.81385]
[1727342705507,1.59207635,2622.3,2622.0,3.81385]
[1727342705983,1.59207635,2622.3,2622.1,3.81373]
[1727342707381,1.59207635,2622.3,2622.0,4.63195]
[1727342707855,1.59207635,2622.3,2622.0,8.44572]
[1727342708073,1.59207635,2622.4,2622.0,8.44572]
[1727342708668,1.59207635,2622.4,2622.1,0.05895476]
[1727342709708,1.59207635,2622.4,2622.1,3.87267476]
[1727342710125,1.59207635,2622.4,2622.1,0.05895476]
[1727342710413,0.7998,2622.7,2622.4,3.8133]
[1727342710414,1.59207635,2622.7,2622.4,3.8133]
[1727342710620,1.59207635,2622.9,2622.7,3.81286]
[1727342710823,1.98941832,2623.0,2622.8,3.81271]
[1727342710824,1.59207635,2623.0,2622.8,3.81271]
[1727342711175,1.59207635,2623.1,2622.9,0.05831502]
[1727342711477,0.66013783,2623.0,2622.7,4.64406]
[1727342711698,1.59207635,2623.1,2623.0,0.0582624]
[1727342711878,1.59207635,2623.1,2622.7,8.45681]
[1727342712109,1.59207635,2623.1,2623.0,0.05825578]
[1727342712295,1.59207635,2623.1,2622.8,3.81271]
[1727342712501,1.59207635,2623.1,2623.0,0.05825578]
[1727342712703,1.59207635,2623.1,2622.9,0.0583084]
[1727342712890,1.59207635,2623.1,2623.0,0.05825578]
[1727342713208,6.20407635,2623.2,2622.8,3.81271]
[1727342713413,5.39187635,2623.2,2623.0,0.05825578]
[1727342713612,6.59243382,2623.2,2622.9,0.0583084]
[1727342713981,10.40457382,2623.2,2622.9,0.0583084]
[1727342714190,3.59243382,2623.2,2622.9,0.0583084]
[1727342714388,2.39187635,2623.2,2622.9,0.0583084]
[1727342714791,0.7998,2623.2,2622.9,0.0583084]
[1727342715207,5.40414635,2623.3,2622.9,0.0583084]
[1727342715602,3.81214,2623.2,2622.9,0.0583084]
[1727342716332,5.01031427,2623.2,2622.9,0.0583084]
[1727342717583,3.81231,2623.1,2622.9,0.0583084]
[1727342717888,3.81231,2623.1,2622.7,4.64404]
[1727342718204,3.81231,2623.1,2622.8,0.057818]
[1727342718432,1.19817427,2623.2,2622.8,0.057818]
[1727342718433,0.8019,2623.0,2622.8,0.057818]
[1727342718604,0.8019,2623.0,2622.7,3.81276]
[1727342718919,0.8019,2623.0,2622.9,0.05776537]
[1727342719118,3.81215,2623.2,2622.8,3.870508]
[1727342719119,4.61405,2623.2,2622.8,3.870508]
[1727342719421,4.61405,2623.2,2622.9,0.05776537]
[1727342720085,4.61405,2623.2,2622.7,3.81284]
[1727342720286,4.61405,2623.2,2623.0,0.05771274]
[1727342720487,3.81229,2623.1,2622.7,3.81284]
[1727342721841,3.81229,2623.1,2622.6,3.81299]
[1727342722135,3.81273,2622.8,2622.4,3.81326]
[1727342722430,4.6757426,2623.0,2622.5,3.81307]
[1727342722431,8.39295,2623.0,2622.5,3.81307]
[1727342722601,9.94166051,2623.0,2622.5,3.81307]
[1727342722804,6.12913051,2623.0,2622.5,3.81307]
[1727342723141,10.03702562,2623.0,2622.5,3.81307]
[1727342723298,6.12913051,2623.0,2622.5,3.81307]
[1727342723506,3.81258,2622.9,2622.5,3.81307]
[1727342723713,3.81258,2622.9,2622.6,0.05583895]
[1727342723913,5.04929193,2622.9,2622.6,0.05583895]
[1727342724516,1.23671193,2622.9,2622.6,0.05583895]
[1727342724914,5.04928193,2622.9,2622.6,0.05583895]
[1727342725283,1.23671193,2622.9,2622.6,0.05583895]
[1727342725690,5.04929193,2622.9,2622.6,0.05583895]
[1727342725893,3.0,2623.2,2623.1,3.81228]
[1727342725894,1.59207635,2623.2,2623.1,3.81228]
[1727342726156,6.19072203,2623.9,2623.5,3.81168]
[1727342726157,0.7596,2623.9,2623.5,3.81168]
[1727342726314,0.7596,2623.9,2623.4,3.81178]
[1727342726638,0.7596,2623.9,2623.5,3.81168]
[1727342726943,0.7596,2623.9,2623.5,0.05573613]
[1727342727146,0.7596,2623.9,2623.5,3.86742613]
[1727342727445,0.7596,2623.9,2623.6,0.05566366]
[1727342730954,0.8221,2623.7,2623.6,0.05566366]
[1727342731308,0.8221,2623.7,2623.3,3.81189]
[1727342731514,0.8221,2623.7,2623.6,0.05505469]
[1727342731752,0.8221,2623.7,2623.4,3.81184]
[1727342732048,0.8221,2623.7,2623.6,0.05505469]
[1727342732260,1.21383922,2623.7,2623.4,7.6236]
[1727342732414,1.21383922,2623.7,2623.6,0.05505469]
[1727342732619,1.21383922,2623.7,2623.4,3.81176]
[1727342732955,0.8221,2623.7,2623.6,0.05505469]
[1727342733249,0.7918,2624.0,2623.6,3.86660469]
[1727342733450,0.88708948,2624.0,2623.6,3.86660469]
[1727342733615,4.81608106,2624.0,2623.6,3.86652469]
[1727342733816,1.81608106,2624.0,2623.6,3.86652469]
[1727342734012,0.7918,2624.0,2623.6,3.86652469]
[1727342734261,0.7918,2624.0,2623.6,3.86651469]
[1727342734414,0.7918,2624.0,2623.7,3.81133]
[1727342734815,0.7918,2624.0,2623.8,3.8662492]
[1727342735961,0.7918,2624.0,2623.8,0.0549892]
[1727342736121,0.7918,2624.0,2623.8,3.8662292]
[1727342739926,3.0,2624.1,2623.8,3.8662292]